[Event "2nd Irena Warakomska Memorial-A"]
[Site "Suwalki"]
[Date "2018.08.04"]
[Round "5"]
[White "Oglaza, Oskar"]
[Black "Fus, Jakub"]
[Result "0-1"]
[ECO "A01"]
[WhiteElo "2364"]
[BlackElo "2210"]
[Annotator "NA"]
[PlyCount "82"]
[EventDate "2018.08.01"]
[EventType "swiss"]
[EventCountry "POL"]
[SourceTitle "playchess.com"]
[Source "ChessBase"]
[SourceQuality "1"]
[TimeControl "40/5400+30:1800+30"]

1. b3 {[%emt 0:00:00]} d5 {[%emt 0:00:18]} 2. Bb2 {[%emt 0:01:21]} Bg4 {[%emt 0:00:36]} 3. h3 {[%emt 0:10:04]} Bh5 {[%emt 0:00:17]} 4. Nf3 {[%emt 0:03:02]} Nd7 {[%emt 0:08:48]} 5. e3 {[%emt 0:01:14]} e6 {[%emt 0:00:31]} 6. Be2 {[%emt 0:01:53]} h6 {[%emt 0:02:51]} 7. O-O {[%emt 0:03:04]} Ngf6 {[%emt 0:00:06]} 8. d4 {[%emt 0:01:42]} Be7 {[%emt 0:07:31]} 9. Nbd2 {[%emt 0:02:05]} O-O {[%emt 0:00:10]} 10. c4 {[%emt 0:01:05]} Bg6 {[%emt 0:05:53]} 11. Ne1 {[%emt 0:25:35]} c5 {[%emt 0:18:19]} 12. Bd3 {[%emt 0:01:43]} Bxd3 {[%emt 0:00:20]} 13. Nxd3 {[%emt 0:00:04]} dxc4 {[%emt 0:03:05]} 14. bxc4 {[%emt 0:02:35]} cxd4 {[%emt 0:03:10]} 15. exd4 {[%emt 0:00:12]} Qa5 {[%emt 0:00:41]} 16. Qe2 {[%emt 0:05:13]} Rfe8 {[%emt 0:02:01]} 17. f4 {[%emt 0:05:26]} Rac8 {[%emt 0:21:25]} 18. g4 {[%emt 0:09:39]} Nf8 {[%emt 0:02:10]} 19. Ne5 N6d7 20. Nxd7 {[%emt 0:12:30]} Nxd7 {[%emt 0:00:35]} 21. Qd3 {[%emt 0:00:19]} Red8 {[%emt 0:04:35]} 22. a4 {[%emt 0:01:31]} Bb4 {[%emt 0:03:16]} 23. Nf3 {[%emt 0:02:01]} Qc7 24. Rac1 {[%emt 0:01:06]} Qxf4 {[%emt 0:03:53]} 25. Nh4 {[%emt 0:00:54]} Qd2 {[%emt 0:03:49]} 26. Qb3 {[%emt 0:00:16]} Nc5 27. Qf3 {[%emt 0:00:04]} Qxb2 {[%emt 0:00:55]} 28. Qxf7+ Kh8 29. dxc5 {[%emt 0:01:23]} Bxc5+ {[%emt 0:00:31]} 30. Kh1 {[%emt 0:00:05]} Rd2 {[%emt 0:03:50]} 31. Nf3 {[%emt 0:03:07]} Rf2 {[%emt 0:01:03]} 32. Rb1 {[%emt 0:01:54]} Qc2 {[%emt 0:01:22]} 33. Rbc1 {[%emt 0:00:50]} Qe2 {[%emt 0:01:00]} 34. Rxf2 Qxf2 35. Qxb7 {[%emt 0:01:36]} Rf8 {[%emt 0:01:10]} 36. Ne5 {[%emt 0:00:10]} Qe3 {[%emt 0:00:32]} 37. Ng6+ {[%emt 0:01:44]} Kg8 {[%emt 0:00:04]} 38. Ne7+ {[%emt 0:00:52]} Bxe7 39. Qb2 {[%emt 0:00:49]} Ba3 {[%emt 0:00:44]} 40. Rc3 {[%emt 0:00:00]} Rf1+ {[%emt 0:00:00]} 41. Kg2 Qg1# 0-1

[Event "2nd Irena Warakomska Memorial-A"]
[Site "Suwalki"]
[Date "2018.08.04"]
[Round "5"]
[White "Kosakowski, Jakub"]
[Black "Warakomski, Tomasz"]
[Result "1/2-1/2"]
[ECO "B06"]
[WhiteElo "2361"]
[BlackElo "2512"]
[Annotator "ChessBase"]
[PlyCount "61"]
[EventDate "2018.08.01"]
[EventType "swiss"]
[EventCountry "POL"]
[SourceTitle "playchess.com"]
[Source "ChessBase"]
[SourceQuality "1"]
[TimeControl "40/5400+30:1800+30"]

1. e4 {[%emt 0:00:00]} g6 {[%emt 0:00:08]} 2. d4 {[%emt 0:00:00]} Bg7 {[%emt 0:00:04]} 3. Nf3 {[%emt 0:01:04]} d6 {[%emt 0:00:09]} 4. Bc4 {[%emt 0:00:32]} a6 {[%emt 0:04:46]} 5. a4 {[%emt 0:03:08]} c5 {[%emt 0:03:08]} 6. dxc5 {[%emt 0:14:45]} Qa5+ {[%emt 0:00:17]} 7. c3 {[%emt 0:00:10]} Qxc5 {[%emt 0:03:03]} 8. Qb3 {[%emt 0:01:31]} e6 {[%emt 0:00:07]} 9. Be3 {[%emt 0:00:33]} Qc7 {[%emt 0:07:52]} 10. Nbd2 {[%emt 0:07:29]} Nd7 {[%emt 0:02:15]} 11. O-O {[%emt 0:04:51]} Ngf6 {[%emt 0:06:16]} 12. a5 {[%emt 0:09:11]} O-O {[%emt 0:02:08]} 13. Rfe1 {[%emt 0:08:20]} Nc5 {[%emt 0:11:27]} 14. Qb4 {[%emt 0:15:46]} Nfxe4 {[%emt 0:27:13]} 15. Nxe4 {[%emt 0:00:25]} Nxe4 {[%emt 0:00:04]} 16. Bb6 {[%emt 0:01:21]} Qc6 {[%emt 0:00:07]} 17. Rad1 {[%emt 0:01:43]} d5 {[%emt 0:05:00]} 18. Bb3 {[%emt 0:00:43]} Bd7 {[%emt 0:08:11]} 19. c4 {[%emt 0:08:17]} dxc4 {[%emt 0:01:26]} 20. Bxc4 {[%emt 0:03:19]} Rfc8 {[%emt 0:03:23]} 21. Rxd7 {[%emt 0:04:44]} Bf8 {[%emt 0:00:06]} 22. Qb3 {[%emt 0:01:14]} Qxc4 {[%emt 0:00:22]} 23. Qxc4 {[%emt 0:04:46]} Rxc4 {[%emt 0:00:05]} 24. Ne5 {[%emt 0:00:25]} Rc2 {[%emt 0:00:25]} 25. Nxf7 {[%emt 0:00:33]} Rxb2 {[%emt 0:03:13]} 26. h3 {[%emt 0:00:18]} Nc5 {[%emt 0:03:01]} 27. Rc7 {[%emt 0:01:58]} Rb5 {[%emt 0:01:43]} 28. Ng5 {[%emt 0:04:09]} Nd3 {[%emt 0:04:13]} 29. Nxh7 {[%emt 0:00:33]} Bd6 {[%emt 0:00:21]} 30. Nf6+ {[%emt 0:00:07]} Kf8 {[%emt 0:00:02]} 31. Nh7+ {[%emt 0:01:51]} 1/2-1/2

[Event "2nd Irena Warakomska Memorial-A"]
[Site "Suwalki"]
[Date "2018.08.04"]
[Round "5"]
[White "Debarshi, Mukherjee"]
[Black "Budrewicz, Krzysztof"]
[Result "0-1"]
[ECO "E73"]
[WhiteElo "2308"]
[BlackElo "2203"]
[Annotator "NA"]
[PlyCount "125"]
[EventDate "2018.08.01"]
[EventType "swiss"]
[EventCountry "POL"]
[SourceTitle "playchess.com"]
[Source "ChessBase"]
[SourceQuality "1"]
[TimeControl "40/5400+30:1800+30"]

1. d4 Nf6 2. c4 g6 3. Nc3 Bg7 4. e4 O-O 5. Be2 d6 6. Bg5 Na6 7. f4 c5 8. d5 Qa5 9. Qd2 e6 10. Nf3 exd5 11. exd5 Re8 12. O-O Bf5 13. Rfe1 h6 14. Bh4 Qb4 15. a3 Qb3 16. Bd3 Nc7 17. Qd1 Qxd1 18. Raxd1 Bxd3 19. Rxd3 Rxe1+ 20. Bxe1 Re8 21. a4 Ne4 22. Nd1 f5 23. Rb3 b6 24. Ne3 Bd4 25. Kf1 Rb8 26. Nxd4 cxd4 27. Nc2 Nc5 28. Rg3 d3 29. Nb4 Kf7 30. Nxd3 Nxa4 31. b3 Nc5 32. Nb4 Re8 33. Nc6 b5 34. b4 Na4 35. Ra3 a6 36. Bf2 Re4 37. Nd4 Rxf4 38. g3 Re4 39. cxb5 axb5 40. Ra1 Ke7 41. Nxb5 Nxb5 42. Rxa4 Kf6 43. Be1 Re5 44. Bd2 g5 45. h4 Rxd5 46. hxg5+ hxg5 47. Be1 Kg6 48. Ra5 Kh5 49. Kg2 Kg4 50. Bf2 Re5 51. Kf1 Kf3 52. Be1 Ke3 53. Bf2+ Kd3 54. Be1 Kc4 55. Bd2 g4 56. Ra6 Rd5 57. Rc6+ Kb3 58. Be1 Nd4 59. Rc8 Nc2 60. Bf2 Nxb4 61. Ke2 Na6 62. Rd8 Kc4 63. Ke1 0-1

[Event "2nd Irena Warakomska Memorial-A"]
[Site "Suwalki"]
[Date "2018.08.04"]
[Round "5"]
[White "Goluch, Piotr"]
[Black "Zgadzaj, Rafal"]
[Result "1-0"]
[ECO "A80"]
[WhiteElo "2301"]
[BlackElo "2154"]
[Annotator "NA"]
[PlyCount "73"]
[EventDate "2018.08.01"]
[EventType "swiss"]
[EventCountry "POL"]
[SourceTitle "playchess.com"]
[Source "ChessBase"]
[SourceQuality "1"]
[TimeControl "40/5400+30:1800+30"]

1. d4 f5 {[%emt 0:00:02]} 2. Nf3 {[%emt 0:00:00]} Nf6 {[%emt 0:00:20]} 3. g3 {[%emt 0:00:00]} d6 {[%emt 0:00:57]} 4. Bg2 {[%emt 0:00:04]} g6 {[%emt 0:00:15]} 5. O-O {[%emt 0:00:06]} Bg7 {[%emt 0:00:02]} 6. b3 {[%emt 0:00:06]} O-O {[%emt 0:00:15]} 7. Bb2 {[%emt 0:00:03]} a5 {[%emt 0:03:30]} 8. c4 Na6 {[%emt 0:06:44]} 9. Nc3 {[%emt 0:03:33]} c6 {[%emt 0:01:25]} 10. Re1 {[%emt 0:02:04]} Qc7 {[%emt 0:02:46]} 11. e4 {[%emt 0:00:23]} fxe4 {[%emt 0:03:32]} 12. Nxe4 Nxe4 {[%emt 0:03:48]} 13. Rxe4 {[%emt 0:00:35]} Bf5 {[%emt 0:00:23]} 14. Re1 {[%emt 0:16:01]} Rae8 {[%emt 0:14:55]} 15. Qe2 {[%emt 0:14:29]} a4 {[%emt 0:12:24]} 16. c5 Bg4 {[%emt 0:05:13]} 17. cxd6 {[%emt 0:01:04]} exd6 {[%emt 0:02:45]} 18. Qxe8 {[%emt 0:00:07]} Rxe8 {[%emt 0:00:13]} 19. Rxe8+ {[%emt 0:00:04]} Kf7 {[%emt 0:02:36]} 20. Rae1 {[%emt 0:00:13]} Bxf3 {[%emt 0:01:22]} 21. Bxf3 {[%emt 0:00:04]} Nb4 {[%emt 0:04:36]} 22. R1e2 axb3 {[%emt 0:02:38]} 23. axb3 {[%emt 0:20:46]} Nc2 {[%emt 0:03:00]} 24. R8e4 {[%emt 0:01:41]} Nxd4 {[%emt 0:17:38]} 25. Bxd4 {[%emt 0:00:23]} Bxd4 {[%emt 0:00:07]} 26. Rxd4 {[%emt 0:00:03]} d5 {[%emt 0:01:43]} 27. h4 {[%emt 0:00:43]} h6 {[%emt 0:05:06]} 28. Rf4+ {[%emt 0:00:16]} Kg7 {[%emt 0:00:14]} 29. Re6 {[%emt 0:00:10]} Qb6 {[%emt 0:01:38]} 30. h5 {[%emt 0:00:24]} g5 {[%emt 0:00:52]} 31. Rg6+ {[%emt 0:00:04]} Kh7 {[%emt 0:00:10]} 32. Rf7+ {[%emt 0:00:12]} Kh8 {[%emt 0:00:01]} 33. Bxd5 {[%emt 0:00:16]} Qd4 {[%emt 0:00:44]} 34. Rf8+ {[%emt 0:00:37]} Kh7 {[%emt 0:00:03]} 35. Bg8+ {[%emt 0:00:10]} Kh8 {[%emt 0:00:03]} 36. Bf7+ {[%emt 0:00:09]} Kh7 {[%emt 0:00:09]} 37. Rgg8 {[%emt 0:00:25]} 1-0

[Event "2nd Irena Warakomska Memorial-A"]
[Site "Suwalki"]
[Date "2018.08.04"]
[Round "5"]
[White "Szustakowski, Antoni"]
[Black "Fiedorek, Michal"]
[Result "1-0"]
[ECO "D35"]
[WhiteElo "2300"]
[BlackElo "1970"]
[Annotator "NA"]
[PlyCount "55"]
[EventDate "2018.08.01"]
[EventType "swiss"]
[EventCountry "POL"]
[SourceTitle "playchess.com"]
[Source "ChessBase"]
[SourceQuality "1"]
[TimeControl "40/5400+30:1800+30"]

1. d4 d5 2. c4 e6 3. Nc3 Nf6 4. cxd5 exd5 5. Bg5 c6 6. e3 Bd6 7. Bd3 O-O 8. Qc2 h6 9. Bh4 Nbd7 10. Nge2 Re8 11. h3 Nf8 12. g4 b5 13. O-O-O a5 14. Rdg1 Be7 15. f4 a4 16. Be1 N6d7 17. h4 Nb6 18. Nb1 b4 19. g5 Kh8 20. gxh6 gxh6 21. Ng3 Nc4 22. Qe2 Qd6 23. Ne4 dxe4 24. Bxc4 Be6 25. Qg2 Ng6 26. h5 Bxc4 27. hxg6 Qxg6 28. Qc2 1-0

[Event "2nd Irena Warakomska Memorial-A"]
[Site "Suwalki"]
[Date "2018.08.04"]
[Round "5"]
[White "Szostko, Jakub"]
[Black "Yevseev, Denis"]
[Result "1/2-1/2"]
[ECO "B12"]
[WhiteElo "2299"]
[BlackElo "2513"]
[Annotator "ChessBase"]
[PlyCount "71"]
[EventDate "2018.08.01"]
[EventType "swiss"]
[EventCountry "POL"]
[SourceTitle "playchess.com"]
[Source "ChessBase"]
[SourceQuality "1"]
[TimeControl "40/5400+30:1800+30"]

1. e4 {[%emt 0:00:00]} c6 {[%emt 0:00:00]} 2. d4 {[%emt 0:00:00]} d5 {[%emt 0:00:00]} 3. e5 {[%emt 0:00:00]} Bf5 {[%emt 0:00:01]} 4. Nf3 {[%emt 0:00:04]} e6 {[%emt 0:00:14]} 5. Be2 {[%emt 0:00:10]} Nd7 {[%emt 0:00:54]} 6. O-O {[%emt 0:00:30]} h6 {[%emt 0:00:28]} 7. Nbd2 {[%emt 0:01:06]} Ne7 {[%emt 0:00:26]} 8. Nb3 {[%emt 0:01:30]} Bh7 {[%emt 0:01:04]} 9. Bd2 {[%emt 0:00:53]} Ng6 {[%emt 0:00:57]} 10. Rc1 {[%emt 0:04:39]} Be7 {[%emt 0:00:47]} 11. c4 {[%emt 0:04:15]} dxc4 {[%emt 0:00:23]} 12. Na5 {[%emt 0:02:55]} Rb8 {[%emt 0:02:03]} 13. Nxc4 {[%emt 0:00:56]} O-O {[%emt 0:00:54]} 14. Ba5 {[%emt 0:04:28]} b6 {[%emt 0:06:28]} 15. Bd2 {[%emt 0:01:41]} c5 {[%emt 0:18:49]} 16. dxc5 {[%emt 0:17:01]} Nxc5 {[%emt 0:09:42]} 17. Be3 {[%emt 0:06:50]} Rb7 {[%emt 0:07:53]} 18. Qxd8 {[%emt 0:11:08]} Rxd8 {[%emt 0:00:43]} 19. Rfd1 {[%emt 0:01:31]} Rbd7 {[%emt 0:01:46]} 20. Rxd7 {[%emt 0:02:53]} Rxd7 {[%emt 0:00:12]} 21. Rd1 {[%emt 0:03:16]} Rxd1+ {[%emt 0:15:57]} 22. Bxd1 {[%emt 0:01:18]} Nf8 {[%emt 0:00:11]} 23. Nd4 {[%emt 0:04:16]} Bd3 {[%emt 0:08:17]} 24. Nc6 {[%emt 0:08:24]} Bg5 {[%emt 0:01:41]} 25. Nd6 {[%emt 0:03:39]} Bxe3 {[%emt 0:01:11]} 26. Ne7+ {[%emt 0:01:49]} Kh7 {[%emt 0:00:27]} 27. fxe3 {[%emt 0:00:04]} Ng6 {[%emt 0:07:41]} 28. Nc6 {[%emt 0:00:59]} Kg8 {[%emt 0:00:43]} 29. Nc8 {[%emt 0:07:25]} Nd7 {[%emt 0:04:17]} 30. N8xa7 {[%emt 0:01:13]} Ngxe5 {[%emt 0:00:20]} 31. Nxe5 {[%emt 0:00:34]} Nxe5 {[%emt 0:00:07]} 32. Nc8 {[%emt 0:01:55]} b5 {[%emt 0:01:15]} 33. Kf2 {[%emt 0:01:12]} Bb1 {[%emt 0:07:25]} 34. Be2 {[%emt 0:00:28]} Bxa2 {[%emt 0:00:05]} 35. Bxb5 {[%emt 0:00:07]} Bb3 {[%emt 0:00:38]} 36. Ne7+ {[%emt 0:01:40]} 1/2-1/2

[Event "2nd Irena Warakomska Memorial-A"]
[Site "Suwalki"]
[Date "2018.08.04"]
[Round "5"]
[White "Kyc, Jerzy"]
[Black "Koziak, Vitali"]
[Result "1/2-1/2"]
[ECO "B80"]
[WhiteElo "2283"]
[BlackElo "2476"]
[Annotator "ChessBase"]
[PlyCount "72"]
[EventDate "2018.08.01"]
[EventType "swiss"]
[EventCountry "POL"]
[SourceTitle "playchess.com"]
[Source "ChessBase"]
[SourceQuality "1"]
[TimeControl "40/5400+30:1800+30"]

1. e4 {[%emt 0:00:00]} c5 {[%emt 0:00:00]} 2. Nf3 {[%emt 0:00:00]} d6 {[%emt 0:00:00]} 3. d4 {[%emt 0:00:00]} cxd4 {[%emt 0:00:00]} 4. Nxd4 {[%emt 0:00:00]} Nf6 {[%emt 0:00:05]} 5. Nc3 {[%emt 0:00:00]} e6 {[%emt 0:00:11]} 6. Be3 {[%emt 0:04:20]} a6 {[%emt 0:00:28]} 7. Qd2 {[%emt 0:09:19]} b5 {[%emt 0:00:50]} 8. a3 {[%emt 0:00:04]} Bb7 {[%emt 0:00:18]} 9. f3 {[%emt 0:00:25]} Nbd7 {[%emt 0:00:15]} 10. g4 {[%emt 0:03:43]} Nb6 {[%emt 0:03:27]} 11. Qf2 {[%emt 0:04:51]} Nfd7 {[%emt 0:00:52]} 12. Bd3 {[%emt 0:05:26]} Rc8 {[%emt 0:01:30]} 13. h4 {[%emt 0:05:16]} Be7 {[%emt 0:04:21]} 14. g5 {[%emt 0:03:37]} Nc4 {[%emt 0:08:44]} 15. Bxc4 {[%emt 0:00:19]} Rxc4 {[%emt 0:00:06]} 16. Qg2 {[%emt 0:22:27]} d5 {[%emt 0:30:07]} 17. exd5 {[%emt 0:00:41]} Nb6 {[%emt 0:00:50]} 18. g6 {[%emt 0:20:10]} Bxh4+ {[%emt 0:18:32]} 19. Rxh4 {[%emt 0:00:39]} Qxh4+ {[%emt 0:00:05]} 20. Bf2 {[%emt 0:00:03]} Qh6 {[%emt 0:15:49]} 21. gxf7+ {[%emt 0:01:16]} Kxf7 {[%emt 0:00:07]} 22. dxe6+ {[%emt 0:06:38]} Ke8 {[%emt 0:00:31]} 23. Ne4 {[%emt 0:02:06]} Bxe4 {[%emt 0:01:05]} 24. fxe4 {[%emt 0:00:03]} g6 {[%emt 0:05:34]} 25. Rd1 {[%emt 0:06:25]} Rf8 {[%emt 0:00:43]} 26. e5 {[%emt 0:01:07]} Qf4 {[%emt 0:01:14]} 27. Nc6 {[%emt 0:00:59]} Re4+ {[%emt 0:01:55]} 28. Kf1 {[%emt 0:00:04]} Nd5 {[%emt 0:00:10]} 29. Kg1 {[%emt 0:00:26]} Rc4 {[%emt 0:04:46]} 30. Rxd5 {[%emt 0:03:51]} Rxc6 {[%emt 0:00:07]} 31. Rd8+ {[%emt 0:00:03]} Kxd8 {[%emt 0:01:43]} 32. Qd5+ {[%emt 0:00:02]} Kc7 {[%emt 0:00:14]} 33. Qd7+ {[%emt 0:00:04]} Kb8 {[%emt 0:00:05]} 34. Qa7+ {[%emt 0:00:13]} Kc8 {[%emt 0:00:04]} 35. Qd7+ {[%emt 0:00:05]} Kb8 {[%emt 0:00:03]} 36. Qa7+ {[%emt 0:00:03]} Kc8 {[%emt 0:00:04]} 1/2-1/2

[Event "2nd Irena Warakomska Memorial-A"]
[Site "Suwalki"]
[Date "2018.08.04"]
[Round "5"]
[White "Marszalek, Maciej"]
[Black "Ulanowski, Karol"]
[Result "1-0"]
[ECO "A39"]
[WhiteElo "2269"]
[BlackElo "2149"]
[Annotator "NA"]
[PlyCount "121"]
[EventDate "2018.08.01"]
[EventType "swiss"]
[EventCountry "POL"]
[SourceTitle "playchess.com"]
[Source "ChessBase"]
[SourceQuality "1"]
[TimeControl "40/5400+30:1800+30"]

1. Nf3 {[%emt 0:00:00]} Nf6 {[%emt 0:00:00]} 2. g3 {[%emt 0:00:00]} g6 {[%emt 0:00:00]} 3. Bg2 {[%emt 0:00:00]} Bg7 {[%emt 0:00:00]} 4. O-O {[%emt 0:00:00]} c5 {[%emt 0:00:07]} 5. c4 {[%emt 0:00:13]} Nc6 {[%emt 0:00:07]} 6. Nc3 {[%emt 0:00:06]} O-O {[%emt 0:01:53]} 7. d4 {[%emt 0:01:10]} cxd4 {[%emt 0:00:29]} 8. Nxd4 {[%emt 0:00:08]} Qa5 {[%emt 0:05:20]} 9. e3 {[%emt 0:01:54]} Ne5 {[%emt 0:18:59]} 10. Nb3 {[%emt 0:15:12]} Qc7 {[%emt 0:01:47]} 11. c5 {[%emt 0:00:42]} Rd8 {[%emt 0:04:22]} 12. Nb5 {[%emt 0:06:59]} Qb8 {[%emt 0:00:13]} 13. e4 {[%emt 0:00:45]} a6 {[%emt 0:05:10]} 14. Nc3 {[%emt 0:00:51]} d6 {[%emt 0:02:52]} 15. cxd6 {[%emt 0:05:16]} exd6 {[%emt 0:10:10]} 16. Nd4 {[%emt 0:17:41]} Bg4 {[%emt 0:12:05]} 17. f3 {[%emt 0:00:49]} Bd7 {[%emt 0:00:05]} 18. Nc2 {[%emt 0:05:16]} b5 {[%emt 0:03:08]} 19. a3 {[%emt 0:00:46]} Be6 {[%emt 0:03:48]} 20. Ne3 {[%emt 0:02:17]} Qa7 {[%emt 0:00:18]} 21. Kh1 {[%emt 0:00:41]} Nc4 {[%emt 0:00:29]} 22. Re1 {[%emt 0:01:03]} Rac8 {[%emt 0:00:48]} 23. Nxc4 {[%emt 0:06:33]} Bxc4 {[%emt 0:00:16]} 24. Be3 {[%emt 0:00:08]} Qb8 {[%emt 0:01:39]} 25. Bf4 {[%emt 0:00:55]} b4 {[%emt 0:00:46]} 26. axb4 {[%emt 0:01:35]} Qxb4 {[%emt 0:00:06]} 27. Qd2 {[%emt 0:01:40]} d5 {[%emt 0:08:19]} 28. exd5 {[%emt 0:04:49]} Bxd5 {[%emt 0:01:20]} 29. Rad1 {[%emt 0:04:06]} Qb6 {[%emt 0:02:45]} 30. Be3 {[%emt 0:01:32]} Qb3 {[%emt 0:01:08]} 31. Bg5 {[%emt 0:00:58]} Rxc3 {[%emt 0:08:09]} 32. Qxc3 {[%emt 0:02:45]} Qxc3 {[%emt 0:00:32]} 33. bxc3 {[%emt 0:00:02]} Rd7 {[%emt 0:00:09]} 34. Bxf6 {[%emt 0:01:18]} Bxf6 {[%emt 0:00:09]} 35. c4 {[%emt 0:00:06]} Be6 {[%emt 0:00:03]} 36. Rxd7 {[%emt 0:00:04]} Bxd7 {[%emt 0:00:03]} 37. f4 {[%emt 0:00:23]} Kf8 {[%emt 0:01:22]} 38. Bd5 {[%emt 0:00:06]} Bd4 {[%emt 0:00:12]} 39. Rd1 {[%emt 0:00:38]} Bc5 {[%emt 0:00:03]} 40. Ra1 {[%emt 0:00:00]} Bc8 {[%emt 0:00:00]} 41. Rb1 {[%emt 0:01:23]} Ke7 {[%emt 0:00:12]} 42. Kg2 {[%emt 0:01:52]} Kd6 {[%emt 0:01:39]} 43. Bxf7 {[%emt 0:00:35]} a5 {[%emt 0:00:05]} 44. Be8 {[%emt 0:00:42]} Bb4 {[%emt 0:00:12]} 45. Bb5 {[%emt 0:02:56]} Kc5 {[%emt 0:00:30]} 46. Kf3 {[%emt 0:01:35]} h5 {[%emt 0:00:05]} 47. Ke3 {[%emt 0:01:08]} Bc3 {[%emt 0:00:04]} 48. Rd1 {[%emt 0:03:26]} Kb4 {[%emt 0:00:07]} 49. Rd6 {[%emt 0:05:10]} a4 {[%emt 0:03:46]} 50. Bxa4 {[%emt 0:00:12]} Kxa4 {[%emt 0:00:04]} 51. Rxg6 {[%emt 0:00:06]} Bg4 {[%emt 0:03:00]} 52. Rg5 {[%emt 0:02:15]} Kb4 {[%emt 0:00:16]} 53. Kd3 {[%emt 0:00:11]} Be1 {[%emt 0:00:31]} 54. Rb5+ {[%emt 0:00:07]} Ka4 {[%emt 0:00:08]} 55. Ke3 {[%emt 0:01:19]} h4 {[%emt 0:01:16]} 56. Rb1 {[%emt 0:02:52]} Bb4 {[%emt 0:00:34]} 57. gxh4 {[%emt 0:01:09]} Be7 {[%emt 0:00:03]} 58. Ke4 {[%emt 0:01:59]} Be2 {[%emt 0:05:03]} 59. Kd5 {[%emt 0:01:22]} Bf3+ {[%emt 0:01:04]} 60. Ke6 {[%emt 0:00:27]} Bxh4 {[%emt 0:00:40]} 61. f5 {[%emt 0:00:50]} 1-0

[Event "2nd Irena Warakomska Memorial-A"]
[Site "Suwalki"]
[Date "2018.08.04"]
[Round "5"]
[White "Kumala, Aleksander"]
[Black "Lisowski, Krzysztof"]
[Result "1-0"]
[ECO "A00"]
[WhiteElo "2238"]
[BlackElo "2072"]
[Annotator "NA"]
[PlyCount "117"]
[EventDate "2018.08.01"]
[EventType "swiss"]
[EventCountry "POL"]
[SourceTitle "playchess.com"]
[Source "ChessBase"]
[SourceQuality "1"]
[TimeControl "40/5400+30:1800+30"]

1. e3 {[%emt 0:00:00]} d5 {[%emt 0:08:58]} 2. c4 {[%emt 0:00:00]} e6 {[%emt 0:01:06]} 3. Nc3 {[%emt 0:00:03]} Nf6 {[%emt 0:01:14]} 4. b3 {[%emt 0:03:11]} c5 {[%emt 0:03:49]} 5. Bb2 {[%emt 0:01:48]} d4 {[%emt 0:02:20]} 6. Nce2 {[%emt 0:21:36]} Nc6 {[%emt 0:01:11]} 7. a3 {[%emt 0:08:12]} e5 {[%emt 0:05:12]} 8. Ng3 {[%emt 0:00:55]} Bd6 {[%emt 0:24:51]} 9. e4 {[%emt 0:02:13]} O-O {[%emt 0:01:32]} 10. Bd3 {[%emt 0:11:50]} Ne7 {[%emt 0:04:50]} 11. N1e2 {[%emt 0:03:10]} Ng6 {[%emt 0:02:09]} 12. O-O {[%emt 0:00:27]} Re8 {[%emt 0:08:03]} 13. f3 {[%emt 0:08:02]} Nf4 {[%emt 0:04:49]} 14. Nxf4 {[%emt 0:00:23]} exf4 {[%emt 0:00:05]} 15. Ne2 {[%emt 0:00:40]} Nh5 {[%emt 0:02:12]} 16. b4 {[%emt 0:14:30]} b6 {[%emt 0:00:27]} 17. e5 {[%emt 0:00:34]} Rxe5 {[%emt 0:04:44]} 18. Be4 {[%emt 0:03:01]} Rb8 {[%emt 0:00:58]} 19. Qe1 {[%emt 0:04:07]} Qg5 {[%emt 0:03:30]} 20. Qf2 {[%emt 0:01:29]} Re6 {[%emt 0:06:09]} 21. Rfe1 {[%emt 0:01:46]} Bd7 {[%emt 0:01:06]} 22. d3 {[%emt 0:01:00]} Rh6 {[%emt 0:00:26]} 23. Bc1 {[%emt 0:00:32]} Re8 {[%emt 0:02:18]} 24. bxc5 {[%emt 0:02:11]} bxc5 {[%emt 0:00:53]} 25. Rb1 {[%emt 0:00:25]} Bc8 {[%emt 0:04:38]} 26. Bd2 {[%emt 0:00:38]} Nf6 {[%emt 0:01:39]} 27. g3 {[%emt 0:01:00]} fxg3 {[%emt 0:01:02]} 28. Nxg3 {[%emt 0:00:22]} Bf4 {[%emt 0:00:32]} 29. Bxf4 {[%emt 0:00:30]} Qxf4 {[%emt 0:00:04]} 30. Rb5 {[%emt 0:00:28]} Qc7 {[%emt 0:02:01]} 31. Qd2 {[%emt 0:01:01]} Ba6 {[%emt 0:01:14]} 32. Qa5 {[%emt 0:01:06]} Qxa5 {[%emt 0:00:57]} 33. Rxa5 {[%emt 0:00:02]} Nxe4 {[%emt 0:00:27]} 34. Rxe4 {[%emt 0:01:35]} Rb8 {[%emt 0:00:31]} 35. Rxc5 {[%emt 0:00:45]} Rb1+ {[%emt 0:00:22]} 36. Kg2 {[%emt 0:00:09]} Rb2+ {[%emt 0:01:02]} 37. Re2 {[%emt 0:00:20]} Rhb6 {[%emt 0:00:21]} 38. Rd5 {[%emt 0:02:43]} g6 {[%emt 0:00:31]} 39. Rxd4 {[%emt 0:00:10]} Rxe2+ {[%emt 0:00:36]} 40. Nxe2 {[%emt 0:00:00]} Rb2 {[%emt 0:00:00]} 41. Kf2 {[%emt 0:03:14]} Kg7 {[%emt 0:11:49]} 42. Rd7 {[%emt 0:00:36]} Bb7 {[%emt 0:00:23]} 43. Ke3 {[%emt 0:00:47]} h5 {[%emt 0:00:15]} 44. h4 {[%emt 0:01:48]} a5 {[%emt 0:10:37]} 45. Nc3 {[%emt 0:01:45]} Rb3 {[%emt 0:01:15]} 46. Ne4 {[%emt 0:01:04]} Bxe4 {[%emt 0:05:52]} 47. Kxe4 {[%emt 0:00:07]} Rxa3 {[%emt 0:00:16]} 48. d4 {[%emt 0:01:25]} Rc3 {[%emt 0:00:33]} 49. c5 {[%emt 0:00:16]} a4 {[%emt 0:00:18]} 50. Kd5 {[%emt 0:00:36]} a3 {[%emt 0:00:36]} 51. f4 {[%emt 0:00:44]} a2 {[%emt 0:03:56]} 52. Ra7 {[%emt 0:00:06]} Rc2 {[%emt 0:00:06]} 53. c6 {[%emt 0:00:11]} Kf6 {[%emt 0:00:36]} 54. Kd6 {[%emt 0:00:07]} Kf5 {[%emt 0:00:37]} 55. c7 {[%emt 0:00:47]} Ke4 {[%emt 0:00:55]} 56. Rxa2 {[%emt 0:01:35]} Rc1 {[%emt 0:00:26]} 57. d5 {[%emt 0:00:33]} f6 {[%emt 0:00:37]} 58. Ra4+ {[%emt 0:00:13]} Kf5 {[%emt 0:00:19]} 59. Kd7 {[%emt 0:00:09]} 1-0

[Event "2nd Irena Warakomska Memorial-A"]
[Site "Suwalki"]
[Date "2018.08.04"]
[Round "5"]
[White "Pietruszewski, Marcin"]
[Black "Maj, Pawel"]
[Result "1-0"]
[ECO "C45"]
[WhiteElo "2208"]
[BlackElo "2071"]
[Annotator "NA"]
[PlyCount "73"]
[EventDate "2018.08.01"]
[EventType "swiss"]
[EventCountry "POL"]
[SourceTitle "playchess.com"]
[Source "ChessBase"]
[SourceQuality "1"]
[TimeControl "40/5400+30:1800+30"]

1. e4 e5 2. Nf3 Nc6 3. d4 exd4 4. Nxd4 Nf6 5. Nxc6 bxc6 6. e5 Qe7 7. Qe2 Nd5 8. h4 d6 9. c4 Nb6 10. exd6 Qxe2+ 11. Bxe2 cxd6 12. Nc3 Be6 13. Bf3 Rc8 14. b3 d5 15. cxd5 cxd5 16. Nb5 Be7 17. Bg5 Bb4+ 18. Bd2 Be7 19. Nxa7 Rc2 20. Bd1 Bf6 21. Bxc2 Bxa1 22. Ke2 Be5 23. Nc6 Bf6 24. Bg5 Bc3 25. Kd3 Bb2 26. Rb1 Ba3 27. Be3 Kd7 28. Nd4 Rb8 29. Ke2 h6 30. Bd3 Na8 31. Nc2 Bd6 32. a4 Nb6 33. Nd4 Ba3 34. Bf4 Ra8 35. Bb5+ Ke7 36. a5 Nd7 37. b4 1-0